fUST/lending_fUST_20240613
["ID","MTS","AMOUNT","RATE_DAILY","PERIOD"]
[329329818,1718249455518,-505.92601737,0.00016986,2]
[329329819,1718249455542,-500.0,0.00016986,2]
[329329820,1718249455563,-270.80089005,0.00016986,2]
[329329821,1718249455579,-500.0,0.00016986,2]
[329329822,1718249455602,-500.0,0.00016986,2]
[329329823,1718249455621,-2304.96,0.00016986,2]
[329329824,1718249455637,-500.0,0.00016986,2]
[329329825,1718249455662,-500.0,0.00016986,2]
[329329826,1718249455676,-212.9175175,0.00016986,2]
[329329827,1718249455691,-500.0,0.00016986,2]
[329329828,1718249455707,-562.09,0.00017062,2]
[329329829,1718249455726,-624.0,0.00017063,2]
[329329830,1718249455748,-624.0,0.00017063,2]
[329329831,1718249455763,-624.0,0.00017063,2]
[329329832,1718249455778,-624.0,0.00017063,2]
[329329833,1718249455794,-624.0,0.00017063,2]
[329329834,1718249455812,-624.0,0.00017063,2]
[329329835,1718249455833,-624.0,0.00017063,2]
[329329836,1718249455847,-624.0,0.00017063,2]
[329329837,1718249455859,-624.0,0.00017063,2]
[329329838,1718249455871,-624.0,0.00017063,2]
[329329839,1718249455885,-624.0,0.00017063,2]
[329329840,1718249455899,-624.0,0.00017063,2]
[329329841,1718249455912,-624.0,0.00017063,2]
[329329842,1718249455930,-500.0,0.00017063,2]
[329329843,1718249455949,-624.0,0.00017065,2]
[329329844,1718249455964,-624.0,0.00017065,2]
[329329845,1718249455978,-624.0,0.00017065,2]
[329329846,1718249455995,-624.0,0.00017065,2]
[329329847,1718249456008,-624.0,0.00017065,2]
[329329848,1718249456021,-624.0,0.00017065,2]
[329329849,1718249456064,-624.0,0.00017065,2]
[329329850,1718249456083,-624.0,0.00017065,2]
[329329851,1718249456094,-624.0,0.00017065,2]
[329329852,1718249456109,-624.0,0.00017065,2]
[329329853,1718249456122,-624.0,0.00017065,2]
[329329854,1718249456134,-624.0,0.00017065,2]
[329329855,1718249456145,-624.0,0.00017065,2]
[329329856,1718249456157,-624.0,0.00017065,2]
[329329857,1718249456168,-624.0,0.00017065,2]
[329329858,1718249456178,-624.0,0.00017065,2]
[329329859,1718249456190,-624.0,0.00017065,2]
[329329860,1718249456202,-624.0,0.00017065,2]
[329329861,1718249456217,-624.0,0.00017065,2]
[329329862,1718249456228,-624.0,0.00017065,2]
[329329863,1718249456238,-624.0,0.00017065,2]
[329329864,1718249456254,-624.0,0.00017065,2]
[329329865,1718249456285,-624.0,0.00017065,2]
[329329866,1718249456307,-624.0,0.00017065,2]
[329329867,1718249456334,-624.0,0.00017065,2]
[329329868,1718249456383,-624.0,0.00017065,2]
[329329869,1718249456398,-624.0,0.00017065,2]
[329329870,1718249456409,-624.0,0.00017065,2]
[329329871,1718249456421,-624.0,0.00017065,2]
[329329872,1718249456434,-624.0,0.00017065,2]
[329329873,1718249456455,-624.0,0.00017065,2]
[329329874,1718249456470,-624.0,0.00017065,2]
[329329875,1718249456488,-624.0,0.00017065,2]
[329329876,1718249456500,-624.0,0.00017065,2]
[329329877,1718249456512,-624.0,0.00017065,2]
[329329878,1718249456524,-624.0,0.00017065,2]
[329329879,1718249456540,-624.0,0.00017065,2]
[329329880,1718249456552,-624.0,0.00017065,2]
[329329881,1718249456564,-624.0,0.00017065,2]
[329329882,1718249456579,-624.0,0.00017065,2]
[329329883,1718249456594,-624.0,0.00017065,2]
[329329884,1718249456611,-624.0,0.00017065,2]
[329329885,1718249456626,-624.0,0.00017065,2]
[329329886,1718249456641,-624.0,0.00017065,2]
[329329887,1718249456652,-624.0,0.00017065,2]
[329329888,1718249456666,-624.0,0.00017065,2]
[329329889,1718249456679,-624.0,0.00017065,2]
[329329890,1718249456702,-624.0,0.00017065,2]
[329329891,1718249456713,-624.0,0.00017065,2]
[329329892,1718249456725,-624.0,0.00017065,2]
[329329893,1718249456738,-624.0,0.00017065,2]
[329329894,1718249456766,-624.0,0.00017065,2]
[329329895,1718249456779,-624.0,0.00017065,2]
[329329896,1718249456790,-624.0,0.00017065,2]
[329329897,1718249456802,-624.0,0.00017065,2]
[329329898,1718249456813,-624.0,0.00017065,2]
[329329899,1718249456824,-624.0,0.00017065,2]
[329329900,1718249456835,-624.0,0.00017065,2]
[329329901,1718249456849,-1079.87277886,0.0001716,2]
[329329902,1718249456866,-562.09,0.00017259,2]
[329329903,1718249456880,-500.0,0.00017259,2]
[329329904,1718249456901,-630.13861783,0.0001726,2]
[329329905,1718249456912,-500.0,0.0001726,2]
[329329906,1718249456926,-562.66,0.0001726,2]
[329329907,1718249456938,-500.0,0.0001726,2]
[329329908,1718249456951,-500.0,0.0001726,2]
[329329909,1718249456963,-500.0,0.0001726,2]
[329329910,1718249456974,-500.0,0.0001726,2]
[329329911,1718249456987,-518.59,0.0001726,2]
[329329912,1718249457001,-500.0,0.0001726,2]
[329329913,1718249457015,-500.0,0.0001726,2]
[329329914,1718249457032,-500.0,0.0001726,2]
[329329915,1718249457043,-500.0,0.0001726,2]
[329329916,1718249457055,-392.36626128,0.0001726,2]
[329329917,1718249457067,-500.0,0.0001726,2]
[329329918,1718249457089,-736.48,0.0001726,2]
[329329919,1718249457102,-515.12,0.0001726,2]
[329329920,1718249457115,-500.0,0.0001726,2]
[329329921,1718249457129,-500.0,0.0001726,2]
[329329922,1718249457139,-511.04237525,0.0001726,2]
[329329923,1718249457150,-500.0,0.0001726,2]
[329329924,1718249457160,-500.0,0.0001726,2]
[329329925,1718249457172,-550.41,0.0001726,2]
[329329926,1718249457183,-500.0,0.0001726,2]
[329329927,1718249457195,-500.0,0.0001726,2]
[329329928,1718249457206,-1230.66,0.0001726,2]
[329329929,1718249457217,-1510.62,0.0001726,2]
[329329930,1718249457228,-500.0,0.0001726,2]
[329329931,1718249457241,-1443.61,0.0001726,2]
[329329932,1718249457256,-745.54,0.0001726,2]
[329329933,1718249457274,-500.0,0.0001726,2]
[329329934,1718249457294,-950.73,0.0001726,2]
[329329935,1718249457323,-500.0,0.0001726,2]
[329329936,1718249457337,-500.0,0.0001726,2]
[329329937,1718249457381,-1013.2,0.0001726,2]
[329329938,1718249457393,-2328.18,0.0001726,2]
[329329939,1718249457404,-500.0,0.0001726,2]
[329329940,1718249457414,-504.57894638,0.0001726,2]
[329329941,1718249457425,-500.0,0.0001726,2]
[329329942,1718249457436,-3862.99,0.0001726,2]
[329329943,1718249457449,-500.0,0.0001726,2]
[329329944,1718249457460,-565.49,0.0001726,2]
[329329945,1718249457472,-188.56937721,0.0001726,2]
[329329946,1718249457482,-500.0,0.0001726,2]
[329329947,1718249457494,-521.64882826,0.0001726,2]
[329329948,1718249457505,-4979.71,0.0001726,2]
[329329949,1718249457515,-781.18,0.0001726,2]
[329329950,1718249457527,-1581.89,0.0001726,2]
[329329951,1718249457538,-500.0,0.0001726,2]
[329329952,1718249457550,-500.0,0.0001726,2]
[329329953,1718249457562,-500.0,0.0001726,2]
[329329954,1718249457573,-1423.37,0.0001726,2]
[329329955,1718249457584,-592.19,0.0001726,2]
[329329956,1718249457595,-500.0,0.0001726,2]
[329329957,1718249457606,-659.79,0.0001726,2]
[329329958,1718249457617,-500.0,0.0001726,2]
[329329959,1718249457628,-500.0,0.0001726,2]
[329329960,1718249457639,-2304.96,0.0001726,2]
[329329961,1718249457651,-231.50127947,0.0001726,2]
[329329962,1718249457664,-500.0,0.0001726,2]
[329329963,1718249457674,-500.0,0.0001726,2]
[329329964,1718249457685,-562.09,0.00017533,2]
[329329965,1718249457696,-500.0,0.00017533,2]
[329329966,1718249457707,-500.0,0.00017534,2]
[329329967,1718249457718,-562.66,0.00017534,2]
[329329968,1718249457729,-500.0,0.00017534,2]
[329329969,1718249457740,-500.0,0.00017534,2]
[329329970,1718249457753,-500.0,0.00017534,2]
[329329971,1718249457771,-518.59,0.00017534,2]
[329329972,1718249457783,-219.23059052,0.00017534,2]
[329329973,1718249457795,-517.38748214,0.00017534,2]
[329329974,1718249457807,-500.0,0.00017534,2]
[329329975,1718249457819,-500.0,0.00017534,2]
[329329976,1718249457832,-736.48,0.00017534,2]
[329329977,1718249457843,-515.12,0.00017534,2]
[329329978,1718249457854,-500.0,0.00017534,2]
[329329979,1718249457876,-500.0,0.00017534,2]
[329329980,1718249457888,-500.0,0.00017534,2]
[329329981,1718249457900,-500.0,0.00017534,2]
[329329982,1718249457912,-550.41,0.00017534,2]
[329329983,1718249457933,-500.0,0.00017534,2]
[329329984,1718249457949,-1230.66,0.00017534,2]
[329329985,1718249457961,-500.0,0.00017534,2]
[329329986,1718249457976,-1510.62,0.00017534,2]
[329329987,1718249457988,-500.0,0.00017534,2]
[329329988,1718249458003,-1443.61,0.00017534,2]
[329329989,1718249458015,-745.54,0.00017534,2]
[329329990,1718249458026,-500.0,0.00017534,2]
[329329991,1718249458038,-950.73,0.00017534,2]
[329329992,1718249458052,-500.0,0.00017534,2]
[329329993,1718249458065,-1013.2,0.00017534,2]
[329329994,1718249458080,-2328.18,0.00017534,2]
[329329995,1718249458091,-500.0,0.00017534,2]
[329329996,1718249458104,-3862.99,0.00017534,2]
[329329997,1718249458116,-500.0,0.00017534,2]
[329329998,1718249458128,-565.49,0.00017534,2]
[329329999,1718249458139,-500.0,0.00017534,2]
[329330000,1718249458149,-4979.71,0.00017534,2]
[329330001,1718249458159,-781.18,0.00017534,2]
[329330002,1718249458177,-1581.89,0.00017534,2]
[329330003,1718249458190,-500.0,0.00017534,2]
[329330004,1718249458202,-500.0,0.00017534,2]
[329330005,1718249458217,-1423.37,0.00017534,2]
[329330006,1718249458228,-592.19,0.00017534,2]
[329330007,1718249458239,-246.32581133,0.00017534,2]
[329330008,1718249458253,-659.79,0.00017534,2]
[329330009,1718249458264,-500.0,0.00017534,2]
[329330010,1718249458275,-500.0,0.00017534,2]
[329330011,1718249458286,-2304.96,0.00017534,2]
[329330012,1718249458302,-500.0,0.00017534,2]
[329330013,1718249458313,-500.0,0.00017534,2]
[329330014,1718249458328,-1079.87277886,0.00017708,2]
[329330015,1718249458376,-242.4,0.00017716,2]
[329330016,1718249458393,-562.09,0.00017807,2]
[329330017,1718249458406,-500.0,0.00017807,2]
[329330018,1718249458417,-500.0,0.00017808,2]
[329330019,1718249458430,-562.66,0.00017808,2]
[329330020,1718249458442,-500.0,0.00017808,2]
[329330021,1718249458456,-500.0,0.00017808,2]
[329330022,1718249458467,-500.0,0.00017808,2]
[329330023,1718249458482,-518.59,0.00017808,2]
[329330024,1718249458494,-500.0,0.00017808,2]
[329330025,1718249458507,-500.0,0.00017808,2]
[329330026,1718249458519,-736.48,0.00017808,2]
[329330027,1718249458530,-515.12,0.00017808,2]
[329330028,1718249458540,-500.0,0.00017808,2]
[329330029,1718249458551,-526.36112683,0.00017808,2]
[329330030,1718249458562,-500.0,0.00017808,2]
[329330031,1718249458583,-550.41,0.00017808,2]
[329330032,1718249458594,-500.0,0.00017808,2]
[329330033,1718249458606,-1230.66,0.00017808,2]
[329330034,1718249458620,-500.0,0.00017808,2]
[329330035,1718249458637,-1510.62,0.00017808,2]
[329330036,1718249458648,-500.0,0.00017808,2]
[329330037,1718249458660,-1443.61,0.00017808,2]
[329330038,1718249458670,-745.54,0.00017808,2]
[329330039,1718249458680,-500.0,0.00017808,2]
[329330040,1718249458692,-950.73,0.00017808,2]
[329330041,1718249458702,-500.0,0.00017808,2]
[329330042,1718249458715,-1013.2,0.00017808,2]
[329330043,1718249458728,-2328.18,0.00017808,2]
[329330044,1718249458749,-500.0,0.00017808,2]
[329330045,1718249458761,-3862.99,0.00017808,2]
[329330046,1718249458773,-500.0,0.00017808,2]
[329330047,1718249458785,-565.49,0.00017808,2]
[329330048,1718249458798,-500.0,0.00017808,2]
[329330049,1718249458810,-4979.71,0.00017808,2]
[329330050,1718249458824,-781.18,0.00017808,2]
[329330051,1718249458835,-1581.89,0.00017808,2]
[329330052,1718249458846,-301.75557073,0.00017808,2]
[329330053,1718249458857,-176.22579761,0.00017808,2]
[329330054,1718249458868,-1423.37,0.00017808,2]
[329330055,1718249458880,-592.19,0.00017808,2]
[329330056,1718249458890,-280.66097,0.00017808,2]
[329330057,1718249458901,-659.79,0.00017808,2]
[329330058,1718249458913,-280.66097,0.00017808,2]
[329330059,1718249458923,-152.157753,0.00017808,2]
[329330060,1718249458934,-260.788678,0.00017808,2]
[329330061,1718249458945,-500.0,0.00017808,2]
[329330062,1718249458956,-151.0,0.00017808,2]
[329330063,1718249458966,-500.0,0.00017808,2]
[329330064,1718249458978,-2304.96,0.00017808,2]
[329330065,1718249458988,-510.12029792,0.00017808,2]
[329330066,1718249458999,-500.0,0.00017808,2]
[329330067,1718249459009,-205.3823407,0.00017836,2]
[329330068,1718249459021,-205.3823407,0.00017836,2]
[329330069,1718249459032,-562.09,0.00017899,2]
[329330070,1718249459043,-562.09,0.00017899,2]
[329330071,1718249459054,-562.09,0.00017899,2]
[329330072,1718249459065,-500.0,0.00017899,2]
[329330073,1718249459075,-500.0,0.00017899,2]
[329330074,1718249459086,-220.015039,0.000179,2]
[329330075,1718249459097,-151.0,0.000179,2]
[329330076,1718249459107,-157.956791,0.000179,2]
[329330077,1718249459118,-1173.980648,0.000179,2]
[329330078,1718249459128,-1173.980648,0.000179,2]
[329330079,1718249459139,-151.0,0.000179,2]
[329330080,1718249459151,-170.27458,0.000179,2]
[329330081,1718249459163,-151.0,0.000179,2]
[329330082,1718249459173,-151.0,0.000179,2]
[329330083,1718249459183,-151.0,0.000179,2]
[329330084,1718249459194,-151.0,0.000179,2]
[329330085,1718249459205,-151.0,0.000179,2]
[329330086,1718249459216,-264.605845,0.000179,2]
[329330087,1718249459230,-234.213191,0.000179,2]
[329330088,1718249459256,-234.213191,0.000179,2]
[329330089,1718249459291,-500.0,0.00017913,2]
[329330090,1718249459311,-242.4,0.00017914,2]
[329330091,1718249459324,-562.09,0.00017999,2]
[329330092,1718249459337,-562.09,0.00017999,2]
[329330093,1718249459351,-562.09,0.00017999,2]
[329330094,1718249459386,-296.17395839,0.00017999,2]
[329330095,1718249459398,-2765.7597697,0.00018,2]
[329330096,1718249459410,-876.95081653,0.00018,2]
[329330097,1718249459429,-1355.76865896,0.00018,2]
[329330098,1718249459451,-84099.64662654,0.00018,2]
[329330099,1718249459566,-31896.92727391,0.00018,2]
[329330100,1718249459578,-476.76775304,0.00018,2]
[329330101,1718249459590,-151.0,0.00018,2]
[329330102,1718249459601,-1173.980648,0.00018,2]
[329330103,1718249459612,-1173.980648,0.00018,2]
[329330104,1718249459624,-152.311017,0.00018,2]
[329330105,1718249459637,-151.0,0.00018,2]
[329330106,1718249459651,-151.0,0.00018,2]
[329330107,1718249459661,-151.0,0.00018,2]
[329330108,1718249459684,-151.0,0.00018,2]
[329330109,1718249459695,-152.133893,0.00018,2]
[329330110,1718249459711,-151.0,0.00018,2]
[329330111,1718249459721,-151.0,0.00018,2]
[329330112,1718249459733,-151.0,0.00018,2]
[329330113,1718249459748,-153.574952,0.00018,2]
[329330114,1718249459760,-234.213191,0.00018,2]
[329330115,1718249459780,-234.213191,0.00018,2]
[329330116,1718249459799,-280.66097,0.00018,2]
[329330117,1718249459814,-280.66097,0.00018,2]
[329330118,1718249459829,-151.0,0.00018,2]
[329330119,1718249459840,-562.09,0.00018081,2]
[329330120,1718249459851,-562.66,0.00018082,2]
[329330121,1718249459862,-500.0,0.00018082,2]
[329330122,1718249459893,-610.76651783,0.00018082,2]
[329330123,1718249459917,-500.0,0.00018082,2]
[329330124,1718249459934,-518.59,0.00018082,2]
[329330125,1718249459956,-500.0,0.00018082,2]
[329330126,1718249459979,-500.0,0.00018082,2]
[329330127,1718249459993,-736.48,0.00018082,2]
[329330128,1718249460018,-515.12,0.00018082,2]
[329330129,1718249460038,-500.0,0.00018082,2]
[329330130,1718249460056,-550.41,0.00018082,2]
[329330131,1718249460066,-1230.66,0.00018082,2]
[329330132,1718249460078,-1510.62,0.00018082,2]
[329330133,1718249460102,-500.0,0.00018082,2]
[329330134,1718249460118,-1443.61,0.00018082,2]
[329330135,1718249460129,-745.54,0.00018082,2]
[329330136,1718249460146,-500.0,0.00018082,2]
[329330137,1718249460157,-950.73,0.00018082,2]
[329330138,1718249460170,-500.0,0.00018082,2]
[329330139,1718249460180,-1013.2,0.00018082,2]
[329330140,1718249460191,-2328.18,0.00018082,2]
[329330141,1718249460201,-500.0,0.00018082,2]
[329330142,1718249460213,-3862.99,0.00018082,2]
[329330143,1718249460223,-500.0,0.00018082,2]
[329330144,1718249460233,-565.49,0.00018082,2]
[329330145,1718249460242,-500.0,0.00018082,2]
[329330146,1718249460252,-4979.71,0.00018082,2]
[329330147,1718249460266,-781.18,0.00018082,2]
[329330148,1718249460280,-1581.89,0.00018082,2]
[329330149,1718249460290,-1423.37,0.00018082,2]
[329330150,1718249460303,-592.19,0.00018082,2]
[329330151,1718249460314,-659.79,0.00018082,2]
[329330152,1718249460327,-500.0,0.00018082,2]
[329330153,1718249460337,-500.0,0.00018082,2]
[329330154,1718249460348,-2304.96,0.00018082,2]
[329330155,1718249460370,-500.0,0.00018082,2]
[329330156,1718249460381,-242.4,0.00018111,2]
[329330157,1718249460394,-1079.87277886,0.00018256,2]
[329330158,1718249460420,-522.77847268,0.00018275,2]
[329330159,1718249460435,-242.4,0.00018309,2]
[329330160,1718249460467,-562.09,0.00018355,2]
[329330161,1718249460477,-562.66,0.00018356,2]
[329330162,1718249460488,-500.0,0.00018356,2]
[329330163,1718249460499,-500.0,0.00018356,2]
[329330164,1718249460509,-518.59,0.00018356,2]
[329330165,1718249460521,-500.0,0.00018356,2]
[329330166,1718249460531,-151.0,0.00018356,2]
[329330167,1718249460546,-500.0,0.00018356,2]
[329330168,1718249460556,-736.48,0.00018356,2]
[329330169,1718249460581,-515.12,0.00018356,2]
[329330170,1718249460591,-500.0,0.00018356,2]
[329330171,1718249460603,-151.0,0.00018356,2]
[329330172,1718249460613,-164.15037726,0.00018356,2]
[329330173,1718249460623,-151.0,0.00018356,2]
[329330174,1718249460634,-550.41,0.00018356,2]
[329330175,1718249460651,-1230.66,0.00018356,2]
[329330176,1718249460662,-151.0,0.00018356,2]
[329330177,1718249460674,-1510.62,0.00018356,2]
[329330178,1718249460687,-500.0,0.00018356,2]
[329330179,1718249460699,-1443.61,0.00018356,2]
[329330180,1718249460728,-745.54,0.00018356,2]
[329330181,1718249460743,-500.0,0.00018356,2]
[329330182,1718249460753,-950.73,0.00018356,2]
[329330183,1718249460771,-151.0,0.00018356,2]
[329330184,1718249460793,-151.0,0.00018356,2]
[329330185,1718249460806,-500.0,0.00018356,2]
[329330186,1718249460819,-1013.2,0.00018356,2]
[329330187,1718249460832,-2328.18,0.00018356,2]
[329330188,1718249460843,-500.0,0.00018356,2]
[329330189,1718249460854,-234.213191,0.00018356,2]
[329330190,1718249460865,-3862.99,0.00018356,2]
[329330191,1718249460875,-234.213191,0.00018356,2]
[329330192,1718249460886,-500.0,0.00018356,2]
[329330193,1718249460898,-565.49,0.00018356,2]
[329330194,1718249460910,-500.0,0.00018356,2]
[329330195,1718249460923,-4979.71,0.00018356,2]
[329330196,1718249460935,-781.18,0.00018356,2]
[329330197,1718249460947,-1581.89,0.00018356,2]
[329330198,1718249460959,-1423.37,0.00018356,2]
[329330199,1718249460969,-592.19,0.00018356,2]
[329330200,1718249460978,-280.66097,0.00018356,2]
[329330201,1718249460991,-659.79,0.00018356,2]
[329330202,1718249461006,-280.66097,0.00018356,2]
[329330203,1718249461032,-500.0,0.00018356,2]
[329330204,1718249461055,-500.0,0.00018356,2]
[329330205,1718249461065,-151.0,0.00018356,2]
[329330206,1718249461077,-2304.96,0.00018356,2]
[329330207,1718249461088,-500.0,0.00018356,2]
[329330208,1718249461099,-153.0,0.00018357,2]
[329330209,1718249461111,-153.0,0.00018369,2]
[329330210,1718249461122,-153.0,0.00018369,2]
[329330211,1718249461133,-153.0,0.00018369,2]
[329330212,1718249461144,-153.0,0.00018369,2]
[329330213,1718249461154,-153.0,0.00018369,2]
[329330214,1718249461165,-153.0,0.00018369,2]
[329330215,1718249461174,-153.0,0.00018369,2]
[329330216,1718249461184,-306.0,0.00018369,2]
[329330217,1718249461194,-151.064,0.00018482,2]
[329330218,1718249461204,-1750.0,0.00018482,2]
[329330219,1718249461215,-500.0,0.00018482,2]
[329330220,1718249461226,-608.68419469,0.000185,2]
[329330221,1718249461238,-242.4,0.00018506,2]
[329330222,1718249461251,-166.666666,0.00018575,2]
[329330223,1718249461263,-587.0,0.00018615,2]
[329330224,1718249461273,-562.09,0.00018629,2]
[329330225,1718249461286,-562.66,0.0001863,2]
[329330226,1718249461302,-500.0,0.0001863,2]
[329330227,1718249461312,-151.985922,0.0001863,2]
[329330228,1718249461325,-203.46704331,0.0001863,2]
[329330229,1718249461335,-518.59,0.0001863,2]
[329330230,1718249461348,-1173.980648,0.0001863,2]
[329330231,1718249461383,-1173.980648,0.0001863,2]
[329330232,1718249461393,-500.0,0.0001863,2]
[329330233,1718249461406,-500.0,0.0001863,2]
[329330234,1718249461416,-736.48,0.0001863,2]
[329330235,1718249461428,-515.12,0.0001863,2]
[329330236,1718249461442,-500.0,0.0001863,2]
[329330237,1718249461458,-550.41,0.0001863,2]
[329330238,1718249461469,-1230.66,0.0001863,2]
[329330239,1718249461480,-1510.62,0.0001863,2]
[329330240,1718249461492,-192.66589042,0.0001863,2]
[329330241,1718249461503,-1443.61,0.0001863,2]
[329330242,1718249461514,-745.54,0.0001863,2]
[329330243,1718249461524,-500.0,0.0001863,2]
[329330244,1718249461538,-950.73,0.0001863,2]
[329330245,1718249461564,-500.0,0.0001863,2]
[329330246,1718249461577,-1013.2,0.0001863,2]
[329330247,1718249461596,-2328.18,0.0001863,2]
[329330248,1718249461608,-500.0,0.0001863,2]
[329330249,1718249461619,-3862.99,0.0001863,2]
[329330250,1718249461642,-500.0,0.0001863,2]
[329330251,1718249461652,-565.49,0.0001863,2]
[329330252,1718249461662,-500.0,0.0001863,2]
[329330253,1718249461672,-4979.71,0.0001863,2]
[329330254,1718249461684,-781.18,0.0001863,2]
[329330255,1718249461694,-1581.89,0.0001863,2]
[329330256,1718249461705,-1423.37,0.0001863,2]
[329330257,1718249461717,-592.19,0.0001863,2]
[329330258,1718249461727,-659.79,0.0001863,2]
[329330259,1718249461742,-500.0,0.0001863,2]
[329330260,1718249461755,-500.0,0.0001863,2]
[329330261,1718249461765,-2304.96,0.0001863,2]
[329330262,1718249461779,-250.0,0.0001863,2]
[329330263,1718249461792,-150.378,0.00018646,2]
[329330264,1718249461805,-150.157,0.00018646,2]
[329330265,1718249461818,-205.3823407,0.00018658,2]
[329330266,1718249461831,-530.8040156,0.00018658,2]
[329330267,1718249461842,-242.4,0.00018703,2]
[329330268,1718249461853,-1079.87277886,0.00018804,2]
[329330269,1718249461864,-938.98252434,0.000189,2]
[329330270,1718249461878,-242.4,0.00018901,2]
[329330271,1718249461898,-562.09,0.00018903,2]
[329330272,1718249461909,-562.09,0.00018903,2]
[329330273,1718249461921,-562.09,0.00018903,2]
[329330274,1718249461932,-562.09,0.00018903,2]
[329330275,1718249461950,-562.21232979,0.00018903,2]
[329330276,1718249461981,-562.66,0.00018904,2]
[329330277,1718249462000,-500.0,0.00018904,2]
[329330278,1718249462016,-518.59,0.00018904,2]
[329330279,1718249462026,-500.0,0.00018904,2]
[329330280,1718249462036,-151.0,0.00018904,2]
[329330281,1718249462052,-500.0,0.00018904,2]
[329330282,1718249462062,-736.48,0.00018904,2]
[329330283,1718249462072,-515.12,0.00018904,2]
[329330284,1718249462082,-500.0,0.00018904,2]
[329330285,1718249462091,-151.0,0.00018904,2]
[329330286,1718249462101,-151.0,0.00018904,2]
[329330287,1718249462113,-550.41,0.00018904,2]
[329330288,1718249462131,-1230.66,0.00018904,2]
[329330289,1718249462159,-217.890987,0.00018904,2]
[329330290,1718249462173,-1510.62,0.00018904,2]
[329330291,1718249462186,-1443.61,0.00018904,2]
[329330292,1718249462198,-745.54,0.00018904,2]
[329330293,1718249462209,-500.0,0.00018904,2]
[329330294,1718249462223,-950.73,0.00018904,2]
[329330295,1718249462234,-151.0,0.00018904,2]
[329330296,1718249462244,-151.0,0.00018904,2]
[329330297,1718249462254,-500.0,0.00018904,2]
[329330298,1718249462267,-1013.2,0.00018904,2]
[329330299,1718249462277,-2328.18,0.00018904,2]
[329330300,1718249462288,-500.0,0.00018904,2]
[329330301,1718249462305,-234.213191,0.00018904,2]
[329330302,1718249462320,-3862.99,0.00018904,2]
[329330303,1718249462333,-234.213191,0.00018904,2]
[329330304,1718249462348,-500.0,0.00018904,2]
[329330305,1718249462377,-565.49,0.00018904,2]
[329330306,1718249462391,-500.0,0.00018904,2]
[329330307,1718249462403,-4979.71,0.00018904,2]
[329330308,1718249462413,-781.18,0.00018904,2]
[329330309,1718249462424,-1581.89,0.00018904,2]
[329330310,1718249462435,-1423.37,0.00018904,2]
[329330311,1718249462453,-592.19,0.00018904,2]
[329330312,1718249462464,-280.66097,0.00018904,2]
[329330313,1718249462476,-659.79,0.00018904,2]
[329330314,1718249462488,-280.66097,0.00018904,2]
[329330315,1718249462501,-500.0,0.00018904,2]
[329330316,1718249462513,-500.0,0.00018904,2]
[329330317,1718249462525,-151.0,0.00018904,2]